bitfinex-derivatives/quotes_SOLF0:USTF0_20241016
["timestamp","ask_amount","ask_price","bid_price","bid_amount"]
[1729041047406,3.2659,153.11,153.07,13.3065]
[1729041048099,26.04581081,153.12,153.08,3.2662]
[1729041048309,26.04581081,153.12,153.06,5.26]
[1729041048310,10.04,153.11,153.06,5.26]
[1729041048701,3.2658,153.11,153.07,3.2664]
[1729041049003,22.78021081,153.12,153.07,3.2664]
[1729041050302,22.78021081,153.12,153.06,15.3]
[1729041050501,12.74021081,153.12,153.09,10.04]
[1729041051010,12.74021081,153.12,153.11,3.2657]
[1729041051401,12.73685375,153.16,153.11,10.04]
[1729041051598,12.73685375,153.16,153.1,5.26]
[1729041051599,12.73685375,153.16,153.13,13.3052]
[1729041051907,12.73685375,153.16,153.13,10.04]
[1729041053211,12.73685375,153.16,153.14,3.2651]
[1729041053710,12.73685375,153.16,153.1,5.26]
[1729041054408,16.00155375,153.16,153.12,3.2654]
[1729041056213,3.2649,153.15,153.12,3.2654]
[1729041057508,12.73685375,153.16,153.08,3.2663]
[1729041057509,3.2657,153.12,153.08,3.2663]
[1729041057711,12.74082974,153.13,153.07,9.3966]
[1729041058106,3.2657,153.12,153.07,9.3966]
[1729041058806,3.2657,153.12,153.09,3.266]
[1729041059405,16.00622974,153.13,153.09,3.266]
[1729041061916,12.74082974,153.13,153.04,73.8246285]
[1729041062112,12.74082974,153.13,153.05,5.26]
[1729041062515,28.43082974,153.13,153.04,5.26]
[1729041063411,3.2663,153.09,153.04,5.26]
[1729041063617,12.74082974,153.13,153.04,20.95]
[1729041064005,16.00632974,153.13,153.09,3.266]
[1729041064210,16.00632974,153.13,153.07,15.69]
[1729041064815,16.00632974,153.13,153.09,3.2661]
[1729041065025,12.74082974,153.13,153.09,15.69]
[1729041065217,12.74082974,153.13,153.12,3.2655]
[1729041067413,12.73685375,153.16,153.09,17.0118]
[1729041068221,12.73685375,153.16,153.09,22.2918]
[1729041068522,3.2651,153.14,153.1,3.2659]
[1729041071319,12.73685375,153.16,152.99,6.5364]
[1729041071513,12.73685375,153.16,153.0,4.1022]
[1729041071514,12.74129547,153.12,153.0,4.1022]
[1729041071714,12.74129547,153.12,153.07,15.69]
[1729041071910,12.74129547,153.12,153.08,5.28]
[1729041072115,12.74129547,153.12,153.09,3.266]
[1729041073227,16.00689547,153.12,153.09,3.266]
[1729041075825,12.74129547,153.12,153.09,3.2661]
[1729041076017,12.74129547,153.12,153.08,5.34]
[1729041076418,5.34,153.17,153.1,15.69]
[1729041076620,15.40435115,153.19,153.1,15.69]
[1729041076822,3.2645,153.17,153.13,3.2651]
[1729041077017,15.40435115,153.19,153.12,21.03]
[1729041078024,3.2643,153.18,153.14,3.2649]
[1729041078216,12.73855115,153.19,153.14,15.69]
[1729041078730,12.73855115,153.19,153.17,3.2644]
[1729041080023,3.2639,153.2,153.17,3.2644]
[1729041084030,3.2634,153.22,153.17,3.2644]
[1729041084333,2.642,153.24,153.17,3.2644]
[1729041085426,2.642,153.24,153.18,3.2641]
[1729041086017,3.2635,153.22,153.18,3.2641]
[1729041086425,15.99654667,153.22,153.18,3.2641]
[1729041086725,3.2636,153.21,153.18,3.2641]
[1729041087829,15.99654667,153.22,153.18,3.2641]
[1729041089834,15.99654667,153.22,153.19,10.03]
[1729041090429,12.73304667,153.22,153.19,10.03]
[1729041090745,3.2636,153.21,153.19,10.03]
[1729041091236,12.73304667,153.22,153.19,10.03]
[1729041091423,12.73304667,153.22,153.19,13.294]
[1729041091630,12.73304667,153.22,153.21,10.03]
[1729041093228,12.73304667,153.22,153.21,13.2936]
[1729041093731,10.03,153.27,153.21,10.03]
[1729041093930,3.2626,153.26,153.23,13.2932]
[1729041094438,3.2626,153.26,153.23,10.03]
[1729041094645,4.1725,153.31,153.25,10.03]
[1729041094941,2.7892,153.31,153.27,10.03]
[1729041095331,3.2617,153.3,153.27,10.03]
[1729041095531,15.51586287,153.31,153.27,10.03]
[1729041095839,15.51586287,153.31,153.25,8.6027]
[1729041096540,3.262,153.29,153.25,8.6027]
[1729041097134,3.2619,153.3,153.26,3.2625]
[1729041097334,3.2619,153.3,153.25,5.34]
[1729041098436,3.2619,153.3,153.27,3.2623]
[1729041098639,15.51586287,153.31,153.25,5.34]
[1729041099041,3.2619,153.29,153.26,3.2625]
[1729041100037,15.51586287,153.31,153.25,5.34]
[1729041100244,3.2623,153.28,153.25,5.34]
[1729041100744,3.2623,153.28,153.25,8.6027]
[1729041101853,15.51586287,153.31,153.22,5.32]
[1729041102348,3.2629,153.25,153.22,5.32]
[1729041102547,15.99087261,153.25,153.22,5.32]
[1729041103352,15.99087261,153.25,153.22,8.5834]
[1729041109648,12.72797261,153.25,153.14,18.5012]
[1729041109952,3.67570362,153.24,153.15,5.22]
[1729041110150,2.6561,153.24,153.15,5.22]
[1729041110447,3.264,153.2,153.15,8.4848]
[1729041110651,15.99742183,153.2,153.15,8.4848]
[1729041113750,3.2641,153.19,153.15,8.4848]
[1729041113954,12.73342183,153.2,153.15,5.22]
[1729041114245,15.99732183,153.2,153.15,5.22]
[1729041114655,15.99732183,153.2,153.15,8.4847]
[1729041115361,3.2641,153.19,153.15,8.4847]
[1729041115855,3.2641,153.19,153.18,10.03]
[1729041117357,12.73342183,153.2,153.16,5.22]
[1729041117569,22.76342183,153.2,153.14,15.25]
[1729041117950,3.2648,153.16,153.14,15.25]
[1729041120452,3.2642,153.19,153.15,10.03]
[1729041120643,12.73342183,153.2,153.16,10.03]
[1729041121046,3.2644,153.18,153.16,10.03]
[1729041121651,12.73342183,153.2,153.15,10.03]
[1729041121858,3.2647,153.16,153.15,10.03]
[1729041123558,12.73381568,153.17,153.15,10.03]
[1729041125564,12.73381568,153.17,153.14,15.25]
[1729041127460,12.73381568,153.17,153.14,18.5151]
[1729041128659,12.73381568,153.17,153.14,5.22]
[1729041128864,3.2649,153.15,153.12,10.03]
[1729041129160,3.2649,153.15,153.12,15.25]
[1729041129564,3.2649,153.15,153.12,18.5155]
[1729041129858,12.73381568,153.17,153.12,15.25]
[1729041130867,12.73381568,153.17,153.12,10.03]
[1729041131056,12.73381568,153.17,153.12,15.25]
[1729041131364,10.03,153.15,153.09,16.561]
[1729041131750,3.2656,153.12,153.09,18.5161]
[1729041132359,3.2654,153.13,153.09,18.5161]
[1729041132960,3.2647,153.16,153.13,3.2651]
[1729041133160,3.2647,153.16,153.12,10.03]
[1729041133360,14.16141568,153.17,153.13,3.2651]
[1729041133551,17.42591568,153.17,153.13,8.4851]
[1729041134565,3.2647,153.16,153.13,8.4851]
[1729041135171,3.2649,153.15,153.13,5.22]
[1729041135371,10.03,153.16,153.11,10.03]
[1729041135559,10.03,153.16,153.1,5.16]
[1729041135762,16.00337541,153.13,153.1,5.16]
[1729041136164,16.00337541,153.13,153.1,3.2659]
[1729041136369,3.2658,153.11,153.07,15.19]
[1729041137275,3.2658,153.11,153.08,3.2663]
[1729041138562,22.76787541,153.13,153.08,3.2663]
[1729041138765,3.2656,153.12,153.08,3.2663]
[1729041139575,22.76787541,153.13,153.04,3.24905265]
[1729041139772,3.2661,153.1,153.06,3.2668]
[1729041143783,3.2661,153.1,153.07,10.03]
[1729041143991,3.2656,153.12,153.08,3.2663]
[1729041144278,10.03,153.13,153.08,3.2663]
[1729041144477,13.2954,153.13,153.08,3.2663]
[1729041144670,10.03,153.13,153.07,10.03]
[1729041145775,10.03,153.13,153.06,13.2966]
[1729041145979,10.03,153.11,153.06,10.03]
[1729041147076,3.2661,153.1,153.06,13.2967]
[1729041149476,3.2661,153.1,153.07,3.2666]
[1729041149681,3.2661,153.1,153.07,13.2966]
[1729041149884,12.7414055,153.12,153.07,10.03]
[1729041150074,10.03,153.1,153.05,5.16]
[1729041150278,10.03,153.1,153.04,18.4571]
[1729041150477,10.03,153.1,153.04,15.19]
[1729041150674,10.03,153.1,153.05,3.2669]
[1729041151074,3.2663,153.09,153.05,3.2669]
[1729041151583,1.4022,153.11,153.04,15.19]
[1729041151584,11.4322,153.11,153.06,10.03]
[1729041151777,3.2662,153.09,153.06,13.2967]
[1729041152283,11.4322,153.11,153.06,10.03]
[1729041152983,3.2663,153.09,153.06,10.03]
[1729041154274,11.4322,153.11,153.06,10.03]
[1729041154476,3.2665,153.08,153.04,15.19]
[1729041154984,3.2665,153.08,153.04,10.03]
[1729041155374,3.2665,153.08,153.05,3.267]
[1729041156285,3.2665,153.08,153.04,10.03]
[1729041156477,3.2665,153.08,153.04,13.2972]
[1729041156984,16.01016888,153.07,153.04,13.2972]
[1729041158082,12.74356888,153.07,152.99,70.54]
[1729041158284,16.01026888,153.07,153.04,3.2672]
[1729041158787,16.01026888,153.07,153.04,3.267]
[1729041159086,12.74356888,153.07,153.04,15.19]
[1729041159587,12.74356888,153.07,153.06,3.2668]
[1729041160085,12.74356888,153.07,153.04,15.19]
[1729041160285,12.74356888,153.07,153.05,3.267]
[1729041160487,1.4022,153.11,153.05,10.03]
[1729041160679,12.7414055,153.12,153.11,3.2657]
[1729041160985,12.7414055,153.12,153.09,10.03]
[1729041161279,16.0071055,153.12,153.08,18.4562]
[1729041161480,12.7414055,153.12,153.08,15.19]
[1729041161885,12.7414055,153.12,153.09,3.266]
[1729041163473,16.0069055,153.12,153.09,3.266]
[1729041163695,16.0069055,153.12,153.08,13.2963]
[1729041168394,3.2658,153.11,153.08,13.2963]
[1729041169484,16.0071055,153.12,153.09,13.2961]
[1729041169684,12.7414055,153.12,153.09,10.03]
[1729041169888,12.7414055,153.12,153.1,10.03]
[1729041170099,12.7414055,153.12,153.11,3.2657]
[1729041171190,187.66094728,153.17,153.1,15.17]
[1729041171391,190.92554728,153.17,153.13,13.2952]
[1729041171893,187.66094728,153.17,153.16,10.03]
[1729041172080,187.66094728,153.17,153.14,10.03]
[1729041172788,3.2647,153.16,153.14,10.03]
[1729041174899,187.66094728,153.17,153.13,10.03]
[1729041175700,10.03,153.16,153.11,10.03]
[1729041176290,196.03706445,153.17,153.1,5.14]
[1729041176493,10.03,153.15,153.08,10.03]
[1729041176698,10.03,153.15,153.08,15.17]
[1729041176900,3.2653,153.13,153.09,3.2661]
[1729041177103,16.00383633,153.13,153.1,10.03]
[1729041177991,12.73853633,153.13,153.1,10.03]
[1729041179503,12.73853633,153.13,153.11,3.2657]
[1729041180602,12.73853633,153.13,153.1,3.2659]
[1729041180798,12.73853633,153.13,153.1,13.2959]
[1729041181502,12.73853633,153.13,153.1,10.03]
[1729041181698,12.73853633,153.13,153.11,3.2657]
[1729041181900,12.73853633,153.13,153.12,10.03]
[1729041182206,12.73853633,153.13,153.12,13.2955]
[1729041191708,187.66094728,153.17,153.15,3.2648]
[1729041191902,187.66094728,153.17,153.15,13.2948]
[1729041192109,187.66094728,153.17,153.14,5.14]
[1729041193497,3.2647,153.16,153.14,5.14]
[1729041196203,190.92544728,153.17,153.14,18.435]
[1729041197200,197.69094728,153.17,153.13,5.08]
[1729041197401,10.03,153.15,153.1,5.08]
[1729041197703,187.66094728,153.17,153.1,15.11]
[1729041197909,187.66094728,153.17,153.11,3.2656]
[1729041197910,3.2651,153.14,153.11,3.2656]
[1729041202314,197.69094728,153.17,153.1,15.11]
[1729041202517,3.2654,153.13,153.1,18.3759]
[1729041202717,16.00405198,153.13,153.1,18.3759]
[1729041202916,12.73865198,153.13,153.11,3.2656]
[1729041206325,16.00415198,153.13,153.1,18.3758]
[1729041207031,16.00415198,153.13,153.11,3.2657]
[1729041210427,12.73865198,153.13,153.11,3.2657]
[1729041212535,12.73865198,153.13,153.12,10.03]
[1729041212737,12.73865198,153.13,153.12,13.2955]
[1729041215334,212.73865198,153.13,153.12,13.2955]
[1729041223434,212.73865198,153.13,153.12,18.3755]
[1729041236048,212.73865198,153.13,153.12,15.11]
[1729041239153,200.0,153.13,153.12,15.11]
[1729041241960,3.2658,153.11,153.09,3.2661]
[1729041242261,12.73808971,153.12,153.1,15.03]
[1729041242560,200.0,153.13,153.1,15.03]
[1729041243459,3.2655,153.12,153.11,10.03]
[1729041250156,3.2657,153.11,153.1,15.03]
[1729041250361,212.73808971,153.13,153.1,15.03]
[1729041250561,212.73808971,153.13,153.12,3.2655]
[1729041257770,200.0,153.13,153.12,3.2655]
[1729041258774,200.0,153.13,153.12,13.2955]
[1729041261869,200.0,153.13,153.12,18.2155]
[1729041267899,119.95,153.13,153.12,18.2155]
[1729041268097,92.4014,153.13,153.12,18.2155]
[1729041268281,91.1693,153.13,153.12,18.2155]
[1729041269694,75.4793,153.13,153.12,18.2155]
[1729041270893,4.6138,153.23,153.19,3.2639]
[1729041271093,4.6138,153.23,153.21,10.03]
[1729041272692,4.6663,153.24,153.22,10.03]
[1729041273997,1.4033,153.24,153.22,10.03]
[1729041276190,1.4353,153.25,153.22,10.03]
[1729041276390,1.4353,153.25,153.23,13.293]
[1729041278299,3.2624,153.27,153.24,8.1828]
[1729041278493,3.2624,153.27,153.25,10.03]
[1729041278997,3.2625,153.26,153.24,14.95]
[1729041279792,3.2625,153.26,153.25,10.03]
[1729041280502,3.2624,153.27,153.25,10.03]
[1729041282303,12.72601197,153.28,153.27,3.2623]
[1729041285697,1.4035,153.3,153.26,10.03]
[1729041285898,1.3229,153.32,153.29,13.2919]
[1729041286094,1.3229,153.32,153.29,18.2119]
[1729041287096,1.3229,153.32,153.29,4.92]
[1729041287498,3.2616,153.31,153.29,4.92]
[1729041291410,4.5842,153.32,153.3,10.03]
[1729041291700,1.3229,153.32,153.3,10.03]
[1729041291903,1.3229,153.32,153.31,10.03]
[1729041292102,187.66094728,153.33,153.32,3.2613]
[1729041292308,4.1673,153.36,153.32,10.03]
[1729041292506,3.2598,153.39,153.36,3.2603]
[1729041292699,3.2598,153.39,153.37,10.03]
[1729041292904,1.3218,153.41,153.37,14.91]
[1729041294209,3.2596,153.4,153.37,14.91]
[1729041299810,1.3218,153.41,153.37,14.91]
[1729041300007,1.3218,153.41,153.37,18.1702]
[1729041300407,1.4194,153.43,153.37,14.91]
[1729041300615,1.3971,153.47,153.42,10.03]
[1729041300813,14.10986747,153.47,153.45,10.03]
[1729041301013,17.36796747,153.47,153.45,10.03]
[1729041301212,24.13986747,153.47,153.27,90.06]
[1729041301514,24.13986747,153.47,153.41,13.2893]
[1729041301515,3.2587,153.44,153.41,13.2893]
[1729041301809,2.7424,153.46,153.42,10.03]
[1729041302010,2.7424,153.46,153.41,4.88]
[1729041302011,14.10986747,153.47,153.45,10.03]
[1729041302513,14.10986747,153.47,153.45,14.91]
[1729041303511,17.36796747,153.47,153.45,14.91]
[1729041305114,14.10986747,153.47,153.45,14.91]
[1729041305423,14.10986747,153.47,153.45,18.1684]
[1729041305612,12.71276747,153.47,153.45,18.1684]
[1729041305815,1.3698,153.51,153.45,14.91]
[1729041306014,1.3698,153.51,153.5,10.03]
[1729041306216,1.3698,153.51,153.5,14.91]
[1729041307014,1.3698,153.51,153.5,4.88]
[1729041308124,3.2568,153.54,153.51,3.2572]
[1729041308415,3.2568,153.54,153.52,10.03]
[1729041308621,11.348,153.56,153.51,10.03]
[1729041308820,1.3675,153.55,153.51,10.03]
[1729041309017,3.2566,153.54,153.51,10.03]
[1729041309420,10.03,153.53,153.5,4.88]
[1729041309616,10.03,153.53,153.48,10.03]
[1729041309923,10.03,153.52,153.48,4.88]
[1729041310121,1.3683,153.51,153.49,3.2576]
[1729041310315,1.3683,153.51,153.5,10.03]
[1729041310515,1.3675,153.55,153.5,10.03]
[1729041310718,1.3675,153.55,153.53,10.03]
[1729041310928,2.6863,153.56,153.54,10.03]
[1729041311721,1.3683,153.56,153.54,10.03]
[1729041311919,1.3683,153.56,153.55,3.2564]
[1729041313014,3.2555,153.6,153.57,3.2559]
[1729041313326,11.3741,153.62,153.57,10.03]
[1729041313729,3.2557,153.59,153.57,10.03]
[1729041314028,15.64,153.59,153.49,15.64]
[1729041314219,3.2561,153.57,153.52,3.2569]
[1729041314415,3.2561,153.57,153.5,4.88]
[1729041314416,15.64,153.61,153.51,15.64]
[1729041314618,1.3441,153.62,153.55,15.64]
[1729041314823,2.7706,153.62,153.6,3.2552]
[1729041315130,2.7706,153.62,153.57,15.64]
[1729041315318,2.7706,153.62,153.59,3.2553]
[1729041315525,2.7706,153.62,153.6,4.88]
[1729041315729,1.3441,153.62,153.6,4.88]
[1729041316028,1.3441,153.62,153.61,3.2551]
[1729041317331,2.8089,153.68,153.6,4.88]
[1729041317526,3.2545,153.64,153.6,4.88]
[1729041317726,1.4407,153.67,153.6,4.88]
[1729041317923,1.4407,153.67,153.61,3.255]
[1729041319527,1.4407,153.67,153.6,4.88]
[1729041320432,1.4407,153.67,153.62,15.64]
[1729041320618,1.0,153.7,153.63,15.64]
[1729041320819,1.0,153.7,153.65,15.64]
[1729041321018,1.0,153.7,153.67,15.64]
[1729041321234,1.0,153.7,153.69,18.8934]
[1729041323130,1.0,153.74,153.69,15.64]
[1729041323330,1.0,153.74,153.73,18.8926]
[1729041323530,1.0,153.74,153.73,20.84]
[1729041323737,1.0,153.74,153.73,5.2]
[1729041324332,1.0,153.74,153.72,15.64]
[1729041324533,1.0,153.74,153.73,5.2]
[1729041325535,1.0,153.74,153.73,8.4526]
[1729041330343,1.0,153.74,153.73,3.2526]
[1729041330539,1.0,153.74,153.73,5.2]
[1729041331748,1.0,153.74,153.72,15.64]
[1729041331945,1.0,153.74,153.73,5.18]
[1729041332946,1.0,153.74,153.72,15.64]
[1729041333146,1.0,153.74,153.73,5.18]
[1729041333353,1.0,153.74,153.7,15.64]
[1729041333577,4.2524,153.74,153.71,5.18]
[1729041333861,1.0,153.74,153.71,5.18]
[1729041334943,4.2524,153.74,153.72,5.18]
[1729041335150,4.2524,153.74,153.71,5.18]
[1729041335948,4.2524,153.74,153.7,5.18]
[1729041335949,3.2529,153.72,153.7,5.18]
[1729041336145,3.2529,153.72,153.66,15.64]
[1729041336352,3.2529,153.72,153.67,5.18]
[1729041336761,3.2529,153.72,153.68,3.2535]
[1729041337253,1.448,153.73,153.68,3.2535]
[1729041337459,1.448,153.73,153.67,5.18]
[1729041338751,3.253,153.71,153.67,5.18]
[1729041339254,3.253,153.71,153.68,3.2536]
[1729041341651,3.2528,153.72,153.69,3.2533]
[1729041342153,1.448,153.73,153.67,5.18]
[1729041342350,1.448,153.73,153.71,3.2529]
[1729041342546,1.0,153.74,153.71,5.18]
[1729041342955,1.0,153.74,153.72,15.64]
[1729041343457,1.0,153.74,153.73,3.2526]
[1729041344758,1.3231,153.78,153.72,15.64]
[1729041344956,1.3231,153.78,153.76,18.8919]
[1729041345261,1.3231,153.78,153.76,15.64]
[1729041345750,4.2514,153.79,153.76,15.64]
[1729041346252,1.0,153.79,153.78,3.2515]
[1729041346448,1.0,153.79,153.77,15.64]
[1729041346756,1.0,153.79,153.78,3.2515]
[1729041347459,2.3709,153.83,153.79,3.2513]
[1729041347657,2.3709,153.83,153.8,5.26]
[1729041348263,1.0,153.83,153.82,15.64]
[1729041349058,1.0,153.83,153.82,18.8907]
[1729041350559,1.0,153.87,153.82,15.64]
[1729041350760,1.0,153.87,153.84,12.48]
[1729041350963,1.0,153.87,153.85,5.24]
[1729041351164,1.0,153.87,153.85,8.4899]
[1729041351664,1.0,153.87,153.85,5.24]
[1729041352254,1.0,153.87,153.85,8.49]
[1729041354959,1.0,153.87,153.86,3.2498]
[1729041355354,1.0,153.87,153.86,15.7298]
[1729041356265,1.0,153.92,153.91,3.2488]
[1729041356471,1.0,153.96,153.91,17.72]
[1729041356769,1.0,153.96,153.94,12.48]
[1729041356954,1.0,153.96,153.95,5.24]
[1729041358262,1.0,153.96,153.95,8.4879]
[1729041358664,1.0,153.96,153.93,5.24]
[1729041359562,3.2481,153.95,153.93,5.24]
[1729041359763,1.0,153.96,153.9,12.48]
[1729041360065,4.2478,153.96,153.92,3.2484]
[1729041360366,4.2478,153.96,153.91,5.24]
[1729041360367,1.0,153.96,153.91,5.24]
[1729041360568,1.0,153.96,153.95,3.2479]
[1729041360758,4.1264,153.99,153.95,5.24]
[1729041360955,1.3362,153.99,153.97,12.48]
[1729041361462,1.0,154.0,153.97,12.48]
[1729041361663,1.0,154.0,153.99,15.7271]
[1729041361865,1.0,154.0,153.99,8.4871]
[1729041362962,1.4035,154.07,153.99,5.24]
[1729041363163,1.4035,154.07,154.0,25.19]
[1729041363772,4.246,154.05,154.01,3.2466]
[1729041363963,1.0,154.05,154.01,3.2466]
[1729041364270,4.2459,154.05,154.01,3.2466]
[1729041364865,3.2462,154.04,154.0,28.4368]
[1729041365067,1.0,154.05,154.0,25.19]
[1729041365671,1.0,154.05,154.04,3.246]
[1729041365869,1.0,154.05,154.04,8.486]
[1729041366261,4.245,154.09,154.06,3.2456]
[1729041366466,1.0,154.09,154.04,5.24]
[1729041366864,1.0,154.09,154.05,3.2457]
[1729041367064,3.2453,154.08,154.03,19.95]
[1729041367272,1.0,154.09,154.04,5.24]
[1729041367677,3.2457,154.06,154.04,5.24]
[1729041367976,1.0,154.09,154.03,5.24]
[1729041368174,3.2463,154.03,154.0,19.95]
[1729041368379,19.95,154.08,154.01,5.24]
[1729041368775,19.95,154.08,154.0,5.24]
[1729041368981,19.95,154.08,153.99,5.24]
[1729041369281,19.95,154.05,153.92,19.95]
[1729041369475,19.95,154.01,153.89,19.95]
[1729041369780,3.2483,153.94,153.9,5.24]
[1729041369983,2.6724,154.0,153.9,5.24]
[1729041370668,2.6724,154.0,153.9,25.19]
[1729041370881,2.6724,154.0,153.92,19.95]
[1729041371071,2.6724,154.0,153.95,19.95]
[1729041371275,1.4211,154.04,153.96,5.24]
[1729041372171,1.4211,154.04,153.97,19.95]
[1729041372584,1.4211,154.04,154.0,19.95]
[1729041372785,1.4211,154.04,154.01,5.24]
[1729041374175,3.2464,154.02,154.01,5.24]
[1729041374781,3.2464,154.02,153.97,19.95]
[1729041374782,3.2464,154.03,153.98,5.24]
[1729041375084,1.4211,154.04,153.98,5.24]
[1729041375475,1.332,154.07,154.03,19.95]
[1729041375670,1.0,154.09,154.04,5.24]
[1729041375879,1.0,154.09,154.05,19.95]
[1729041376379,1.0,154.09,154.04,5.24]
[1729041376380,1.0,154.09,154.08,23.1952]
[1729041376576,1.0,154.18,154.08,25.53]
[1729041376779,2.8311,154.17,154.08,25.53]
[1729041377086,2.8311,154.17,154.1,19.95]
[1729041377400,2.8311,154.17,154.08,25.53]
[1729041378072,2.8311,154.17,154.09,3.2449]
[1729041378683,6.0746,154.17,154.12,3.2443]
[1729041378878,6.0746,154.17,154.12,8.8243]
[1729041379085,2.8311,154.17,154.12,8.8243]
[1729041379779,1.3853,154.17,154.12,5.58]
[1729041379982,1.0,154.18,154.14,19.95]
[1729041380887,1.0,154.18,154.16,3.2435]
[1729041381084,1.0,154.18,154.16,5.58]
[1729041381491,1.0,154.18,154.11,19.95]
[1729041381689,1.0,154.18,154.12,5.58]
[1729041381887,1.0,154.18,154.07,19.95]
[1729041381888,1.0,154.18,154.13,5.58]
[1729041382591,1.0,154.18,154.07,19.95]
[1729041382893,1.0,154.18,154.06,5.58]
[1729041382894,19.95,154.16,154.06,5.58]
[1729041383080,3.2451,154.09,154.06,5.58]
[1729041383890,3.245,154.09,154.06,5.58]
[1729041384501,2.788,154.15,154.06,5.58]
[1729041384788,19.95,154.14,154.03,5.58]
[1729041384988,2.788,154.15,154.03,5.58]
[1729041385192,8.368,154.15,154.05,19.95]
[1729041385587,2.788,154.15,154.07,19.95]
[1729041385786,2.788,154.15,154.09,3.2448]
[1729041386185,3.2443,154.13,154.09,3.2448]
[1729041386899,3.2443,154.12,154.08,8.8251]
[1729041387396,1.02241079,154.11,154.04,19.95]
[1729041387589,1.02241079,154.1,154.05,5.58]
[1729041387787,1.02241079,154.09,154.05,5.58]
[1729041387987,2.788,154.15,154.07,19.95]
[1729041388191,1.02239387,154.14,154.07,19.95]
[1729041388590,1.02239387,154.14,154.05,5.58]
[1729041388790,1.02239387,154.14,154.06,19.95]
[1729041389890,3.2445,154.12,154.08,3.245]
[1729041390090,1.02239387,154.11,154.09,5.58]
[1729041390297,1.0,154.18,154.09,25.53]
[1729041390492,1.0,154.18,154.14,19.95]
[1729041391286,1.01414479,154.17,154.16,19.95]
[1729041391485,1.01391689,154.2,154.16,19.95]
[1729041391683,2.3651,154.22,154.19,3.2429]
[1729041391886,2.3651,154.22,154.17,5.58]
[1729041392287,1.0,154.22,154.2,3.2424]
[1729041392492,1.0060822,154.21,154.2,3.2424]
[1729041392887,1.0,154.22,154.19,19.95]
[1729041393092,1.0,154.22,154.21,3.2424]
[1729041393408,1.0,154.26,154.21,25.53]
[1729041393699,1.0,154.26,154.24,19.95]
[1729041393998,0.9980437,154.25,154.24,19.95]
[1729041394890,0.9980437,154.25,154.22,19.95]
[1729041395095,0.9980437,154.25,154.2,5.58]
[1729041395292,0.9980437,154.25,154.16,1.4145]
[1729041395499,1.0,154.26,154.19,5.58]
[1729041396194,1.0,154.26,154.19,8.8228]
[1729041396398,1.0,154.26,154.19,5.58]
[1729041396700,3.2427,154.2,154.19,5.58]
[1729041396896,3.2427,154.2,154.16,5.58]
[1729041397599,3.2429,154.19,154.16,5.58]
[1729041397786,38.96,154.26,154.16,5.58]
[1729041398090,32.38,154.21,154.11,5.58]
[1729041398291,2.7694,154.2,154.11,5.58]
[1729041398700,3.2436,154.16,154.12,3.2443]